fUST/lending_fUST_20250529
["ID","MTS","AMOUNT","RATE_DAILY","PERIOD"]
[362880452,1748507440936,-430.0,0.00020273,2]
[362880454,1748507440945,-430.0,0.00020273,2]
[362880456,1748507440954,-430.0,0.00020273,2]
[362880458,1748507440963,-430.0,0.00020273,2]
[362880460,1748507440973,-430.0,0.00020273,2]
[362880462,1748507440982,-552.69,0.00020273,2]
[362880464,1748507440991,-430.0,0.00020273,2]
[362880466,1748507441001,-430.0,0.00020273,2]
[362880468,1748507441011,-430.0,0.00020273,2]
[362880470,1748507441020,-430.0,0.00020273,2]
[362880472,1748507441031,-430.0,0.00020273,2]
[362880474,1748507441041,-430.0,0.00020273,2]
[362880476,1748507441054,-430.0,0.00020273,2]
[362880478,1748507441064,-430.0,0.00020273,2]
[362880480,1748507441073,-892.07,0.00020273,2]
[362880482,1748507441082,-177.53415027,0.00020273,2]
[362880484,1748507441092,-430.0,0.00020273,2]
[362880486,1748507441103,-430.0,0.00020273,2]
[362880488,1748507441111,-430.0,0.00020273,2]
[362880490,1748507441120,-430.0,0.00020273,2]
[362880492,1748507441131,-430.0,0.00020273,2]
[362880494,1748507441140,-430.0,0.00020273,2]
[362880496,1748507441150,-430.0,0.00020273,2]
[362880498,1748507441159,-460.11,0.00020273,2]
[362880500,1748507441169,-813.5,0.00020273,2]
[362880502,1748507441178,-430.0,0.00020273,2]
[362880504,1748507441188,-1569.52,0.00020273,2]
[362880506,1748507441198,-430.0,0.00020273,2]
[362880508,1748507441207,-430.0,0.00020273,2]
[362880510,1748507441215,-430.0,0.00020273,2]
[362880512,1748507441225,-430.0,0.00020273,2]
[362880514,1748507441234,-430.0,0.00020273,2]
[362880516,1748507441244,-430.0,0.00020273,2]
[362880518,1748507441253,-430.0,0.00020273,2]
[362880520,1748507441262,-430.0,0.00020273,2]
[362880522,1748507441272,-430.0,0.00020273,2]
[362880524,1748507441282,-475.33,0.00020273,2]
[362880526,1748507441291,-430.0,0.00020273,2]
[362880528,1748507441300,-429.08,0.00020273,2]
[362880530,1748507441309,-430.0,0.00020273,2]
[362880532,1748507441319,-798.6,0.00020273,2]
[362880534,1748507441328,-430.0,0.00020273,2]
[362880536,1748507441338,-430.0,0.00020273,2]
[362880538,1748507441347,-430.0,0.00020273,2]
[362880540,1748507441356,-430.0,0.00020273,2]
[362880542,1748507441365,-430.0,0.00020273,2]
[362880543,1748507441375,-430.0,0.00020273,2]
[362880545,1748507441384,-430.0,0.00020273,2]
[362880547,1748507441393,-468.17122438,0.00020273,2]
[362880549,1748507441402,-430.0,0.00020273,2]
[362880551,1748507441412,-430.0,0.00020273,2]
[362880553,1748507441422,-430.0,0.00020273,2]
[362880555,1748507441431,-430.0,0.00020273,2]
[362880557,1748507441440,-430.0,0.00020273,2]
[362880559,1748507441450,-430.0,0.00020273,2]
[362880561,1748507441460,-439.17,0.00020273,2]
[362880563,1748507441470,-430.0,0.00020273,2]
[362880565,1748507441480,-430.0,0.00020273,2]
[362880567,1748507441489,-430.0,0.00020273,2]
[362880569,1748507441498,-430.0,0.00020273,2]
[362880571,1748507441507,-323.32,0.00020273,2]
[362880573,1748507441517,-430.0,0.00020273,2]
[362880575,1748507441529,-430.0,0.00020273,2]
[362880577,1748507441538,-430.0,0.00020273,2]
[362880579,1748507441547,-430.0,0.00020273,2]
[362880581,1748507441557,-870.52,0.00020273,2]
[362880583,1748507441566,-299.96,0.00020273,2]
[362880585,1748507441575,-430.0,0.00020273,2]
[362880587,1748507441585,-430.0,0.00020273,2]
[362880589,1748507441595,-430.0,0.00020273,2]
[362880591,1748507441605,-1021.04,0.00020273,2]
[362880593,1748507441614,-430.0,0.00020273,2]
[362880595,1748507441624,-430.0,0.00020273,2]
[362880597,1748507441634,-430.0,0.00020273,2]
[362880599,1748507441643,-430.0,0.00020273,2]
[362880601,1748507441653,-430.0,0.00020273,2]
[362880603,1748507441662,-430.0,0.00020273,2]
[362880605,1748507441671,-187.87904902,0.00020273,2]
[362880607,1748507441681,-430.0,0.00020273,2]
[362880609,1748507441690,-1008.16,0.00020273,2]
[362880611,1748507441699,-430.0,0.00020273,2]
[362880613,1748507441708,-430.0,0.00020273,2]
[362880615,1748507441718,-430.0,0.00020273,2]
[362880617,1748507441727,-430.0,0.00020273,2]
[362880619,1748507441736,-481.75,0.00020273,2]
[362880621,1748507441745,-430.0,0.00020273,2]
[362880623,1748507441754,-420.0,0.00020275,2]
[362880625,1748507441763,-207.85990414,0.000204,3]
[362880627,1748507441774,-5031.56,0.00020419,2]
[362880629,1748507441784,-306.48328258,0.00020444,2]
[362880631,1748507441792,-9454.66812255,0.00020547,2]
[362880633,1748507441802,-430.0,0.00020547,2]
[362880634,1748507441811,-430.0,0.00020547,2]
[362880636,1748507441820,-430.0,0.00020547,2]
[362880638,1748507441830,-430.0,0.00020547,2]
[362880640,1748507441839,-430.0,0.00020547,2]
[362880642,1748507441848,-430.0,0.00020547,2]
[362880644,1748507441858,-430.0,0.00020547,2]
[362880646,1748507441867,-430.0,0.00020547,2]
[362880648,1748507441875,-430.0,0.00020547,2]
[362880650,1748507441885,-430.0,0.00020547,2]
[362880652,1748507441894,-430.0,0.00020547,2]
[362880654,1748507441905,-430.0,0.00020547,2]
[362880656,1748507441915,-430.0,0.00020547,2]
[362880658,1748507441924,-430.0,0.00020547,2]
[362880660,1748507441933,-430.0,0.00020547,2]
[362880662,1748507441942,-430.0,0.00020547,2]
[362880664,1748507441951,-892.07,0.00020547,2]
[362880666,1748507441961,-430.0,0.00020547,2]
[362880668,1748507441970,-430.0,0.00020547,2]
[362880670,1748507441980,-430.0,0.00020547,2]
[362880672,1748507441989,-430.0,0.00020547,2]
[362880674,1748507441998,-430.0,0.00020547,2]
[362880676,1748507442008,-430.0,0.00020547,2]
[362880678,1748507442017,-430.0,0.00020547,2]
[362880680,1748507442031,-460.11,0.00020547,2]
[362880682,1748507442042,-813.5,0.00020547,2]
[362880684,1748507442055,-430.0,0.00020547,2]
[362880685,1748507442065,-845.52647028,0.00020547,2]
[362880699,1748507442322,-430.0,0.00019178,2]
[362880700,1748507442331,-430.0,0.00019178,2]
[362880702,1748507442340,-370.0,0.00019178,2]
[362880704,1748507442350,-430.0,0.00019452,2]
[362880706,1748507442359,-723.99352972,0.00020547,2]
[362880707,1748507442377,-31.93194028,0.00020547,2]
[362880711,1748507442388,-398.06805972,0.00020547,2]
[362880723,1748507442488,-430.0,0.00020547,2]
[362880725,1748507442497,-430.0,0.00020547,2]
[362880727,1748507442507,-430.0,0.00020547,2]
[362880729,1748507442516,-430.0,0.00020547,2]
[362880731,1748507442524,-430.0,0.00020547,2]
[362880733,1748507442531,-430.0,0.00020547,2]
[362880735,1748507442539,-475.33,0.00020547,2]
[362880737,1748507442547,-430.0,0.00020547,2]
[362880739,1748507442555,-430.0,0.00020547,2]
[362880741,1748507442563,-798.6,0.00020547,2]
[362880742,1748507442569,-213.15194053,0.00020547,2]
[362880745,1748507442580,-216.84805947,0.00020547,2]
[362880747,1748507442588,-162.65354934,0.00020547,2]
[362880751,1748507442611,-267.34645066,0.00020547,2]
[362880752,1748507442619,-63.65354934,0.00020547,2]
[362880755,1748507442629,-282.70645066,0.00020547,2]
[362880757,1748507442638,-430.0,0.00020547,2]
[362880759,1748507442647,-301.27714934,0.00020547,2]
[362880761,1748507442659,-128.72285066,0.00020547,2]
[362880763,1748507442669,-430.0,0.00020547,2]
[362880765,1748507442678,-430.0,0.00020547,2]
[362880767,1748507442688,-430.0,0.00020547,2]
[362880769,1748507442697,-430.0,0.00020547,2]
[362880771,1748507442707,-430.0,0.00020547,2]
[362880773,1748507442716,-430.0,0.00020547,2]
[362880775,1748507442726,-107.77039417,0.00020547,2]
[362880777,1748507442737,-322.22960583,0.00020547,2]
[362880779,1748507442746,-205.46139966,0.00020547,2]
[362880781,1748507442758,-224.53860034,0.00020547,2]
[362880783,1748507442767,-439.17,0.00020547,2]
[362880785,1748507442777,-430.0,0.00020547,2]
[362880787,1748507442786,-430.0,0.00020547,2]
[362880789,1748507442795,-430.0,0.00020547,2]
[362880791,1748507442804,-430.0,0.00020547,2]
[362880793,1748507442813,-430.0,0.00020547,2]
[362880795,1748507442822,-430.0,0.00020547,2]
[362880797,1748507442832,-430.0,0.00020547,2]
[362880799,1748507442840,-430.0,0.00020547,2]
[362880801,1748507442849,-870.52,0.00020547,2]
[362880803,1748507442857,-430.0,0.00020547,2]
[362880804,1748507442866,-430.0,0.00020547,2]
[362880806,1748507442875,-430.0,0.00020547,2]
[362880808,1748507442884,-1021.04,0.00020547,2]
[362880810,1748507442894,-274.28,0.00020547,2]
[362880813,1748507442904,-430.0,0.00020547,2]
[362880816,1748507442913,-430.0,0.00020547,2]
[362880819,1748507442922,-430.0,0.00020547,2]
[362880822,1748507442932,-430.0,0.00020547,2]
[362880825,1748507442941,-430.0,0.00020547,2]
[362880828,1748507442950,-430.0,0.00020547,2]
[362880831,1748507442960,-1008.16,0.00020547,2]
[362880835,1748507442970,-430.0,0.00020547,2]
[362880837,1748507442979,-198.80675126,0.00020547,2]
[362880840,1748507442988,-430.0,0.00020547,2]
[362880843,1748507442997,-430.0,0.00020547,2]
[362880846,1748507443007,-430.0,0.00020547,2]
[362880849,1748507443016,-386.723,0.00020601,2]
[362880852,1748507443025,-415.18626728,0.0002069,2]
[362880855,1748507443036,-84.81373272,0.0002069,2]
[362880860,1748507443048,-295.39751148,0.00020695,2]
[362880879,1748507443191,-127.92011838,0.00020695,2]
[362880881,1748507443201,-160.0,0.00020695,2]
[362880883,1748507443211,-229.26895353,0.00020695,2]
[362880885,1748507443220,-842.5625,0.00020697,2]
[362880887,1748507443229,-1595.03994128,0.00020697,2]
[362880889,1748507443241,-550.73773191,0.00020697,2]
[362880892,1748507443256,-1085.09280307,0.00020697,2]
[362882695,1748508295521,166.504531,0.00013699,2]
[362882696,1748508361687,1625351.0,0.00024658,120]
[362882735,1748508632126,-5000.0,0.00016163,2]
[362882736,1748508632136,-155.70375002,0.00016326,2]
[362882737,1748508632145,-731.86,0.00016491,2]
[362882738,1748508632156,-168.19204084,0.00017163,2]
[362882739,1748508632170,-1463.73,0.00017277,2]
[362882740,1748508632184,-300.0,0.0001787,2]
[362882741,1748508632198,-300.0,0.0001787,2]
[362882742,1748508632210,-20137.2637984,0.00017871,2]
[362882743,1748508632220,-612.3221336,0.00017982,2]
[362882744,1748508632231,-2195.59,0.00018062,2]
[362882745,1748508632240,-207.85990414,0.000184,2]
[362882746,1748508632249,-207.85990414,0.000184,2]
[362882747,1748508632268,-2927.45,0.00018847,2]
[362882748,1748508632280,-207.85990414,0.000189,2]
[362882749,1748508632290,-290.12745458,0.00019172,2]
[362882750,1748508632300,-394.98746746,0.00019172,2]
[362882751,1748508632310,-597.85320696,0.00019172,2]
[362882752,1748508632320,-500.0,0.00019172,2]
[362882753,1748508632331,-500.0,0.00019172,2]
[362882754,1748508632341,-232.27467978,0.00019172,2]
[362882755,1748508632351,-500.0,0.00019172,2]
[362882756,1748508632361,-300.0,0.00019172,2]
[362882757,1748508632371,-500.0,0.00019173,2]
[362882758,1748508632381,-500.0,0.00019173,2]
[362882759,1748508632391,-500.0,0.00019173,2]
[362882760,1748508632401,-500.0,0.00019173,2]
[362882761,1748508632411,-500.0,0.00019173,2]
[362882762,1748508632421,-537.81806687,0.00019173,2]
[362882763,1748508632432,-500.0,0.00019173,2]
[362882764,1748508632442,-501.00371335,0.00019173,2]
[362882765,1748508632451,-335.45674811,0.00019177,2]
[362882766,1748508632461,-500.0,0.00019177,2]
[362882767,1748508632471,-500.0,0.00019177,2]
[362882768,1748508632482,-550.75537235,0.00019177,2]
[362882769,1748508632491,-500.0,0.00019177,2]
[362882770,1748508632503,-500.0,0.00019177,2]
[362882771,1748508632514,-472.09618332,0.00019177,2]
[362882772,1748508632524,-500.0,0.00019177,2]
[362882773,1748508632534,-500.0,0.00019177,2]
[362882774,1748508632544,-500.0,0.00019177,2]
[362882775,1748508632554,-500.0,0.00019177,2]
[362882776,1748508632564,-500.0,0.00019177,2]
[362882777,1748508632574,-500.0,0.00019177,2]
[362882778,1748508632585,-500.0,0.00019177,2]
[362882779,1748508632598,-400.0,0.00019178,2]
[362882780,1748508632611,-417.03820136,0.00019178,2]
[362882781,1748508632621,-275.77616446,0.00019178,2]
[362882782,1748508632631,-429.24339771,0.00019178,2]
[362882783,1748508632641,-430.0,0.00019178,2]
[362882784,1748508632651,-430.0,0.00019178,2]
[362882785,1748508632661,-430.0,0.00019178,2]
[362882786,1748508632671,-430.0,0.00019178,2]
[362882787,1748508632680,-370.0,0.00019178,2]
[362882788,1748508632690,-370.0,0.00019178,2]
[362882789,1748508632699,-430.0,0.00019178,2]
[362882790,1748508632709,-353.43177733,0.00019178,2]
[362882791,1748508632718,-325.77121803,0.00019178,2]
[362882792,1748508632727,-430.0,0.00019178,2]
[362882793,1748508632736,-430.0,0.00019178,2]
[362882794,1748508632745,-430.0,0.00019178,2]
[362882795,1748508632756,-350.0,0.00019178,2]
[362882796,1748508632765,-403.79490541,0.00019178,2]
[362882797,1748508632775,-407.78198602,0.00019178,2]
[362882798,1748508632785,-430.0,0.00019178,2]
[362882799,1748508632795,-430.0,0.00019178,2]
[362882800,1748508632805,-400.0,0.00019178,2]
[362882801,1748508632815,-430.0,0.00019178,2]
[362882802,1748508632824,-350.0,0.00019178,2]
[362882803,1748508632834,-381.16939089,0.00019178,2]
[362882804,1748508632844,-400.0,0.00019178,2]
[362882805,1748508632854,-430.0,0.00019178,2]
[362882806,1748508632863,-430.0,0.00019178,2]
[362882807,1748508632872,-430.0,0.00019178,2]
[362882808,1748508632884,-262.73846046,0.00019178,2]
[362882809,1748508632894,-300.0,0.00019178,2]
[362882810,1748508632904,-430.0,0.00019178,2]
[362882811,1748508632913,-430.0,0.00019178,2]
[362882812,1748508632923,-430.0,0.00019178,2]
[362882813,1748508632933,-430.0,0.00019178,2]
[362882814,1748508632943,-430.0,0.00019178,2]
[362882815,1748508632953,-430.0,0.00019178,2]
[362882816,1748508632963,-453.05177797,0.00019178,2]
[362882817,1748508632973,-430.0,0.00019178,2]
[362882818,1748508632982,-450.0,0.00019178,2]
[362882819,1748508632992,-430.0,0.00019178,2]
[362882820,1748508633004,-411.73762338,0.00019178,2]
[362882821,1748508633014,-430.0,0.00019178,2]
[362882822,1748508633024,-430.0,0.00019178,2]
[362882823,1748508633034,-295.78702851,0.00019178,2]
[362882824,1748508633044,-240.42934723,0.00019178,2]
[362882825,1748508633054,-406.3958574,0.00019178,2]
[362882826,1748508633064,-411.99771792,0.00019178,2]
[362882827,1748508633075,-430.0,0.00019178,2]
[362882828,1748508633085,-400.0,0.00019178,2]
[362882829,1748508633095,-400.0,0.00019178,2]
[362882830,1748508633105,-430.0,0.00019178,2]
[362882831,1748508633115,-516.53602936,0.00019178,2]
[362882832,1748508633125,-406.4275544,0.00019178,2]
[362882833,1748508633135,-430.0,0.00019178,2]
[362882834,1748508633144,-400.0,0.00019178,2]
[362882835,1748508633154,-257.99777585,0.00019178,2]
[362882836,1748508633164,-430.0,0.00019178,2]
[362882837,1748508633174,-409.11422479,0.00019178,2]
[362882838,1748508633183,-430.0,0.00019178,2]
[362882839,1748508633193,-403.61582165,0.00019178,2]
[362882840,1748508633204,-450.0,0.00019178,2]
[362882841,1748508633214,-430.0,0.00019178,2]
[362882842,1748508633224,-430.0,0.00019178,2]
[362882843,1748508633234,-430.0,0.00019178,2]
[362882844,1748508633244,-430.0,0.00019178,2]
[362882845,1748508633255,-408.87958327,0.00019178,2]
[362882846,1748508633264,-402.00983343,0.00019178,2]
[362882847,1748508633275,-435.92375421,0.00019178,2]
[362882848,1748508633285,-400.0,0.00019178,2]
[362882849,1748508633297,-430.0,0.00019178,2]
[362882850,1748508633307,-402.03573371,0.00019178,2]
[362882851,1748508633318,-450.0,0.00019178,2]
[362882852,1748508633328,-430.0,0.00019178,2]
[362882853,1748508633338,-430.0,0.00019178,2]
[362882854,1748508633352,-430.0,0.00019178,2]
[362882855,1748508633361,-371.15596815,0.00019178,2]
[362882856,1748508633371,-430.0,0.00019178,2]
[362882857,1748508633381,-430.0,0.00019178,2]
[362882858,1748508633392,-430.0,0.00019178,2]
[362882859,1748508633401,-430.0,0.00019178,2]
[362882860,1748508633410,-430.0,0.00019178,2]
[362882861,1748508633420,-430.0,0.00019178,2]
[362882862,1748508633430,-430.0,0.00019178,2]
[362882863,1748508633439,-407.63792836,0.00019178,2]
[362882864,1748508633449,-400.80650554,0.00019178,2]
[362882865,1748508633459,-430.0,0.00019178,2]
[362882866,1748508633468,-450.0,0.00019178,2]
[362882867,1748508633478,-442.00420122,0.00019178,2]
[362882868,1748508633487,-370.0,0.00019178,2]
[362882869,1748508633497,-430.0,0.00019178,2]
[362882870,1748508633507,-430.0,0.00019178,2]
[362882871,1748508633516,-430.0,0.00019178,2]
[362882872,1748508633526,-430.0,0.00019178,2]
[362882873,1748508633536,-430.0,0.00019178,2]
[362882874,1748508633546,-430.0,0.00019178,2]
[362882875,1748508633556,-370.0,0.00019178,2]
[362882876,1748508633567,-430.0,0.00019178,2]
[362882877,1748508633577,-430.0,0.00019178,2]
[362882878,1748508633589,-430.0,0.00019178,2]
[362882879,1748508633599,-538.31024321,0.00019178,2]
[362882880,1748508633609,-430.0,0.00019178,2]
[362882881,1748508633619,-430.0,0.00019178,2]
[362882882,1748508633629,-430.0,0.00019178,2]
[362882883,1748508633639,-413.15312527,0.00019178,2]
[362882884,1748508633649,-430.0,0.00019178,2]
[362882885,1748508633658,-430.0,0.00019178,2]
[362882886,1748508633668,-430.0,0.00019178,2]
[362882887,1748508633679,-430.0,0.00019178,2]
[362882888,1748508633690,-430.0,0.00019178,2]
[362882889,1748508633700,-430.0,0.00019178,2]
[362882890,1748508633709,-430.0,0.00019178,2]
[362882891,1748508633720,-427.63858494,0.00019178,2]
[362882892,1748508633732,-430.0,0.00019178,2]
[362882893,1748508633742,-430.0,0.00019178,2]
[362882894,1748508633753,-151.0,0.00019178,2]
[362882895,1748508633763,-391.61921207,0.00019178,2]
[362882896,1748508633773,-430.0,0.00019178,2]
[362882897,1748508633782,-211.82341862,0.00019178,2]
[362882898,1748508633792,-351.22284102,0.00019178,2]
[362882899,1748508633802,-300.0,0.00019178,2]
[362882900,1748508633813,-430.0,0.00019178,2]
[362882901,1748508633825,-430.0,0.00019178,2]
[362882902,1748508633835,-396.34833083,0.00019178,2]
[362882903,1748508633846,-430.0,0.00019178,2]
[362882904,1748508633856,-430.0,0.00019178,2]
[362882905,1748508633866,-430.0,0.00019178,2]
[362882906,1748508633876,-430.0,0.00019178,2]
[362882907,1748508633886,-304.25123012,0.00019178,2]
[362882908,1748508633896,-430.0,0.00019178,2]
[362882909,1748508633906,-430.0,0.00019178,2]
[362882910,1748508633916,-430.0,0.00019178,2]
[362882911,1748508633926,-416.82741354,0.00019178,2]
[362882912,1748508633936,-430.0,0.00019178,2]
[362882913,1748508633945,-400.14908512,0.00019178,2]
[362882914,1748508633955,-451.57756083,0.00019178,2]
[362882915,1748508633965,-400.0,0.00019178,2]
[362882916,1748508633974,-430.0,0.00019178,2]
[362882917,1748508633984,-430.0,0.00019178,2]
[362882918,1748508633994,-430.0,0.00019178,2]
[362882919,1748508634003,-431.38088767,0.00019178,2]
[362882920,1748508634012,-406.56684293,0.00019178,2]
[362882921,1748508634022,-430.0,0.00019178,2]
[362882922,1748508634031,-430.0,0.00019178,2]
[362882923,1748508634041,-430.0,0.00019178,2]
[362882924,1748508634050,-477.71944048,0.00019178,2]
[362882925,1748508634059,-430.0,0.00019178,2]
[362882926,1748508634070,-430.0,0.00019178,2]
[362882927,1748508634079,-431.43421559,0.00019178,2]
[362882928,1748508634089,-430.0,0.00019178,2]
[362882929,1748508634099,-430.0,0.00019178,2]
[362882930,1748508634108,-430.0,0.00019178,2]
[362882931,1748508634117,-500.0,0.00019178,2]
[362882932,1748508634268,-430.0,0.00019178,2]
[362882933,1748508634281,-430.0,0.00019178,2]
[362882934,1748508634291,-430.0,0.00019178,2]
[362882935,1748508634301,-430.0,0.00019178,2]
[362882936,1748508634317,-430.0,0.00019178,2]
[362882937,1748508634327,-376.25,0.00019178,2]
[362882938,1748508634336,-430.0,0.00019178,2]
[362882939,1748508634347,-430.0,0.00019178,2]
[362882940,1748508634357,-430.0,0.00019178,2]
[362882941,1748508634367,-430.0,0.00019178,2]
[362882942,1748508634377,-430.0,0.00019178,2]
[362882943,1748508634388,-403.89836182,0.00019178,2]
[362882944,1748508634398,-430.0,0.00019178,2]
[362882945,1748508634408,-430.0,0.00019178,2]
[362882946,1748508634418,-353.93025143,0.00019178,2]
[362882947,1748508634428,-430.0,0.00019178,2]
[362882948,1748508634438,-222.84005705,0.00019178,2]
[362882949,1748508634448,-430.0,0.00019178,2]
[362882950,1748508634458,-470.0,0.00019178,2]
[362882951,1748508634468,-430.0,0.00019178,2]
[362882952,1748508634478,-400.0,0.00019178,2]
[362882953,1748508634488,-430.0,0.00019178,2]
[362882954,1748508634498,-430.0,0.00019178,2]
[362882955,1748508634508,-430.0,0.00019178,2]
[362882956,1748508634517,-430.0,0.00019178,2]
[362882957,1748508634527,-430.0,0.00019178,2]
[362882958,1748508634536,-415.36390822,0.00019178,2]
[362882959,1748508634546,-430.0,0.00019178,2]
[362882960,1748508634555,-430.0,0.00019178,2]
[362882961,1748508634564,-430.0,0.00019178,2]
[362882962,1748508634574,-430.0,0.00019178,2]
[362882963,1748508634584,-430.0,0.00019178,2]
[362882964,1748508634596,-430.0,0.00019178,2]
[362882965,1748508634605,-430.0,0.00019178,2]
[362882966,1748508634615,-430.0,0.00019178,2]
[362882967,1748508634624,-430.0,0.00019178,2]
[362882968,1748508634634,-234.68903668,0.00019178,2]
[362882969,1748508634643,-430.0,0.00019178,2]
[362882970,1748508634652,-505.29043091,0.00019178,2]
[362882971,1748508634662,-430.0,0.00019178,2]
[362882972,1748508634671,-430.0,0.00019178,2]
[362882973,1748508634681,-430.0,0.00019178,2]
[362882974,1748508634690,-221.37594871,0.00019178,2]
[362882975,1748508634699,-500.0,0.00019178,2]
[362882976,1748508634708,-500.0,0.00019178,2]
[362882977,1748508634717,-500.0,0.00019178,2]
[362882978,1748508634726,-500.0,0.00019178,2]
[362882979,1748508634736,-557.2,0.00019178,2]
[362882980,1748508634744,-430.0,0.00019178,2]
[362882981,1748508634754,-430.0,0.00019178,2]
[362882982,1748508634763,-482.54051558,0.00019178,2]
[362882983,1748508634772,-430.0,0.00019178,2]
[362882984,1748508634781,-478.29724161,0.00019178,2]
[362882985,1748508634790,-430.0,0.00019178,2]
[362882986,1748508634798,-430.0,0.00019178,2]
[362882987,1748508634808,-430.0,0.00019178,2]
[362882988,1748508634819,-430.0,0.00019178,2]
[362882989,1748508634829,-430.0,0.00019178,2]
[362882990,1748508634839,-430.0,0.00019178,2]
[362882991,1748508634849,-430.0,0.00019178,2]
[362882992,1748508634860,-430.0,0.00019178,2]
[362882993,1748508634869,-430.0,0.00019178,2]
[362882994,1748508634879,-430.0,0.00019178,2]
[362882995,1748508634888,-430.0,0.00019178,2]
[362882996,1748508634897,-430.0,0.00019178,2]
[362882997,1748508634906,-430.0,0.00019178,2]
[362882998,1748508634915,-414.25997631,0.00019178,2]
[362882999,1748508634924,-430.0,0.00019178,2]
[362883000,1748508634933,-430.0,0.00019178,2]
[362883001,1748508634942,-524.24826083,0.00019178,2]
[362883002,1748508634950,-430.0,0.00019178,2]
[362883003,1748508634958,-430.0,0.00019178,2]
[362883004,1748508634966,-430.0,0.00019178,2]
[362883005,1748508634975,-430.0,0.00019178,2]
[362883006,1748508634984,-430.0,0.00019178,2]
[362883007,1748508634993,-430.0,0.00019178,2]
[362883008,1748508635002,-420.0,0.00019178,2]
[362883009,1748508635012,-430.0,0.00019178,2]
[362883010,1748508635021,-430.0,0.00019178,2]
[362883011,1748508635031,-430.0,0.00019178,2]
[362883012,1748508635040,-669.05,0.00019178,2]
[362883013,1748508635049,-430.0,0.00019178,2]
[362883014,1748508635059,-430.0,0.00019178,2]
[362883015,1748508635068,-430.0,0.00019178,2]
[362883016,1748508635078,-430.0,0.00019178,2]
[362883017,1748508635089,-430.0,0.00019178,2]
[362883018,1748508635098,-719.63,0.00019178,2]
[362883019,1748508635108,-430.0,0.00019178,2]
[362883020,1748508635117,-352.4759509,0.00019178,2]
[362883021,1748508635127,-1431.62,0.00019178,2]
[362883022,1748508635136,-430.0,0.00019178,2]
[362883023,1748508635145,-430.0,0.00019178,2]
[362883024,1748508635155,-430.0,0.00019178,2]
[362883025,1748508635164,-430.0,0.00019178,2]
[362883026,1748508635174,-805.58,0.00019178,2]
[362883027,1748508635183,-402.08225071,0.00019178,2]
[362883028,1748508635194,-370.0,0.00019178,2]
[362883029,1748508635205,-430.0,0.00019178,2]
[362883030,1748508635215,-430.0,0.00019178,2]
[362883031,1748508635226,-430.0,0.00019178,2]
[362883032,1748508635235,-430.0,0.00019178,2]
[362883033,1748508635244,-430.0,0.00019178,2]
[362883034,1748508635254,-457.38456133,0.00019178,2]
[362883035,1748508635263,-430.0,0.00019178,2]
[362883036,1748508635273,-570.0,0.00019178,2]
[362883037,1748508635283,-409.67578599,0.00019178,2]
[362883038,1748508635292,-430.0,0.00019178,2]
[362883039,1748508635302,-430.0,0.00019178,2]